bitfinex/quotes_ETHUSD_20240612
["timestamp","ask_amount","ask_price","bid_price","bid_amount"]
[1718160766938,0.89949597,3494.0,3493.9,0.836]
[1718160767812,0.89949597,3494.1,3493.9,0.836]
[1718160768816,0.89949597,3494.0,3493.9,0.836]
[1718160770908,0.89949597,3494.1,3493.9,0.836]
[1718160771104,0.89949597,3494.1,3494.0,0.836]
[1718160772408,1.19963692,3494.2,3494.0,0.836]
[1718160772618,1.85705546,3494.2,3494.0,0.836]
[1718160772817,0.89960565,3494.1,3494.0,0.836]
[1718160774016,0.89960565,3494.1,3493.4,6.7622]
[1718160774017,2.4461024,3494.2,3493.4,6.7622]
[1718160774212,0.59975866,3493.9,3493.4,6.7622]
[1718160774531,0.59975866,3493.8,3493.5,0.12145121]
[1718160774839,0.59975866,3493.8,3493.7,0.836]
[1718160775135,0.59975866,3493.8,3493.7,0.9573858]
[1718160776342,0.59975866,3493.9,3493.7,0.9573858]
[1718160776924,0.59975866,3493.8,3493.7,0.9573858]
[1718160778004,0.59975866,3493.9,3493.7,0.9573858]
[1718160778205,0.59975866,3493.9,3493.8,0.836]
[1718160778535,0.59975866,3493.9,3493.8,0.95737761]
[1718160781301,0.59975866,3493.9,3493.8,8.39347761]
[1718160781608,0.59975866,3494.2,3494.0,2.86204]
[1718160781844,0.59975866,3494.2,3494.1,8.16268927]
[1718160782148,0.59975866,3494.7,3494.2,2.86188]
[1718160782303,0.59975866,3494.7,3494.5,0.836]
[1718160782510,0.89963799,3494.7,3494.5,0.836]
[1718160782709,0.89963799,3494.7,3494.6,0.1210125]
[1718160783536,0.89963799,3494.8,3494.6,0.1210125]
[1718160783729,0.59931356,3494.7,3494.6,0.1210125]
[1718160783922,0.59931356,3494.7,3494.6,0.836]
[1718160784245,0.59931356,3494.8,3494.6,0.95677826]
[1718160784547,0.59931356,3494.8,3494.7,0.836]
[1718160784856,0.59931356,3494.9,3494.7,0.95674285]
[1718160785161,0.59931356,3494.9,3494.8,0.836]
[1718160785932,0.89963799,3494.9,3494.8,0.836]
[1718160786255,3.89963799,3495.0,3494.8,0.836]
[1718160786423,0.59889389,3494.9,3494.8,0.836]
[1718160787345,0.59889389,3495.0,3494.8,0.836]
[1718160787545,3.59889389,3495.0,3494.8,0.836]
[1718160787838,0.59889389,3494.9,3494.8,0.836]
[1718160792996,0.59889389,3495.0,3494.8,0.836]
[1718160793360,0.88539389,3495.1,3494.8,0.836]
[1718160793897,0.59889389,3495.0,3494.8,0.836]
[1718160794394,0.88539389,3495.1,3494.8,0.836]
[1718160795885,0.59889389,3495.0,3494.8,0.836]
[1718160796789,0.88539389,3495.1,3494.8,0.836]
[1718160797797,0.59889389,3495.0,3494.8,0.836]
[1718160800909,0.59889389,3494.9,3494.8,0.836]
[1718160801527,0.59855286,3494.9,3494.8,0.836]
[1718160801823,0.89963799,3495.0,3494.2,2.86188]
[1718160802037,0.59856667,3494.8,3494.3,1.01339316]
[1718160802201,0.59856667,3494.7,3494.3,1.01339316]
[1718160802406,0.59856667,3494.7,3494.6,0.836]
[1718160802713,0.59856667,3494.8,3494.6,0.836]
[1718160802928,0.59856667,3494.8,3494.7,0.836]
[1718160803783,0.89963799,3494.9,3494.7,0.836]
[1718160804809,0.59884974,3494.8,3494.7,0.836]
[1718160805180,0.89963799,3494.9,3494.7,0.836]
[1718160805822,0.59895511,3494.8,3494.7,0.836]
[1718160806888,0.59895511,3494.8,3494.7,0.95616549]
[1718160814815,0.89963799,3494.9,3494.7,0.95616549]
[1718160815367,0.59930757,3494.8,3494.7,0.95616549]
[1718160819241,0.89963799,3494.9,3494.7,0.95616549]
[1718160820122,0.89963799,3494.8,3494.7,0.95616549]
[1718160820546,0.89963799,3494.9,3494.7,0.95616549]
[1718160820717,0.89963799,3494.9,3494.8,0.836]
[1718160820924,1.78785049,3495.0,3494.8,0.836]
[1718160821232,0.58821357,3494.9,3494.8,0.836]
[1718160821650,1.78785049,3494.9,3494.8,0.836]
[1718160821958,1.19963692,3494.9,3494.8,0.836]
[1718160822112,1.78785049,3494.9,3494.8,0.836]
[1718160822315,1.19963692,3494.9,3494.8,0.836]
[1718160822545,1.78785049,3494.9,3494.8,0.836]
[1718160823586,0.58821357,3494.9,3494.8,0.836]
[1718160824152,2.08671005,3494.9,3494.8,0.836]
[1718160825653,0.58821357,3494.9,3494.7,0.836]
[1718160825854,0.58821357,3494.8,3494.7,0.836]
[1718160826891,0.58821357,3494.8,3494.1,7.4361]
[1718160826892,8.40576346,3494.8,3494.5,0.836]
[1718160827057,3.58821357,3494.7,3494.5,0.836]
[1718160827391,0.58821357,3494.6,3494.5,0.836]
[1718160827555,3.0,3494.7,3494.5,0.836]
[1718160829208,1.50128353,3494.6,3494.5,0.836]
[1718160829994,1.50128353,3494.7,3494.5,0.836]
[1718160832288,1.20078134,3494.6,3494.5,0.836]
[1718160832605,1.50128353,3494.7,3494.5,0.836]
[1718160833501,1.20073366,3494.6,3494.5,0.836]
[1718160833859,1.20073772,3494.6,3494.5,0.836]
[1718160834361,1.20070444,3494.6,3494.5,0.836]
[1718160835500,7.1946,3494.5,3493.5,0.58809528]
[1718160835711,7.1946,3494.5,3493.3,8.21864293]
[1718160835712,0.60035578,3493.8,3493.3,7.3365]
[1718160835858,0.60035578,3493.7,3493.3,10.1991]
[1718160836202,0.60035578,3493.7,3493.6,0.836]
[1718160836203,1.20071156,3493.7,3493.6,0.836]
[1718160836785,1.20071156,3493.7,3493.6,0.94848984]
[1718160837181,3.0,3493.7,3493.6,0.94848984]
[1718160837703,1.20071156,3493.8,3493.6,0.836]
[1718160838058,0.89965727,3493.7,3493.6,0.836]
[1718160838459,0.89965727,3493.7,3493.6,0.94848984]
[1718160839199,0.89965727,3493.8,3493.6,0.94848984]
[1718160839495,0.89965727,3493.8,3493.7,0.836]
[1718160842380,0.89965727,3493.8,3493.7,8.2708]
[1718160842607,0.59928123,3493.8,3493.7,9.09788]
[1718160842788,0.59928123,3493.9,3493.7,9.21033087]
[1718160842989,0.59928123,3494.0,3493.8,0.836]
[1718160843299,0.59928123,3494.2,3493.9,0.94838002]
[1718160843495,0.59928123,3494.1,3493.9,0.11238002]
[1718160843698,0.59928123,3494.1,3494.0,0.836]
[1718160843907,0.59928123,3494.1,3494.0,0.94865923]
[1718160844620,0.59928123,3494.2,3494.0,0.94865923]
[1718160844795,0.59928123,3494.2,3494.1,0.836]
[1718160845309,0.89965727,3494.3,3494.1,0.836]
[1718160845817,0.89965727,3494.2,3494.1,0.836]
[1718160847386,0.89965727,3494.3,3494.1,0.836]
[1718160848085,0.89965727,3494.2,3494.1,0.836]
[1718160848320,0.89965727,3494.3,3494.1,0.836]
[1718160848782,0.89965727,3494.2,3494.1,0.836]
[1718160848979,0.89965727,3494.3,3494.1,0.836]
[1718160849396,0.59904789,3494.2,3494.1,0.836]
[1718160851017,0.89965727,3494.3,3494.1,0.836]
[1718160851208,0.89965727,3494.3,3494.2,0.836]
[1718160851736,0.89965727,3494.3,3494.2,0.94886505]
[1718160852329,0.89965727,3494.4,3494.2,0.94886505]
[1718160853089,0.89965727,3494.4,3494.2,8.37306505]
[1718160853404,0.5989611,3494.3,3494.2,8.2602]
[1718160854335,0.5989611,3494.3,3494.2,0.836]
[1718160854535,0.5989611,3494.4,3494.3,7.4242]
[1718160854830,0.5989611,3494.5,3494.3,8.2602]
[1718160855039,0.5989611,3494.7,3494.4,0.836]
[1718160855322,0.5989611,3494.7,3494.6,0.836]
[1718160855513,0.59893668,3494.7,3494.6,0.836]
[1718160855888,0.89965727,3494.8,3494.6,0.836]
[1718160856088,1.85021866,3494.8,3494.6,0.836]
[1718160856319,0.59892971,3494.7,3494.6,0.836]
[1718160857815,0.89965727,3494.8,3494.6,0.836]
[1718160858420,0.59901907,3494.7,3494.6,0.836]
[1718160859017,0.89965727,3494.8,3494.6,0.836]
[1718160859323,0.89965727,3494.7,3494.6,0.836]
[1718160860621,0.89965727,3494.7,3493.8,9.70316]
[1718160860824,0.89965727,3494.4,3494.2,0.836]
[1718160864300,0.89965727,3494.3,3494.2,0.836]
[1718160864494,0.89965727,3494.4,3494.2,0.836]
[1718160866210,0.89965727,3494.3,3494.2,0.836]
[1718160868939,0.59952456,3494.3,3494.2,7.5995]
[1718160869406,0.59952456,3494.3,3494.2,7.70997604]
[1718160873848,0.59952456,3494.3,3494.2,0.94647604]
[1718160882324,0.59952456,3494.3,3494.2,1.78345364]
[1718160882735,0.89965727,3494.5,3494.2,1.78345364]
[1718160882736,0.59952456,3494.5,3494.2,1.78345364]
[1718160882950,3.0,3494.6,3494.2,1.78345364]
[1718160882951,0.59952456,3494.6,3494.4,0.836]
[1718160883687,0.59952456,3494.6,3494.5,6.9981028]
[1718160883820,0.59952456,3494.7,3494.5,7.87093422]
[1718160884025,0.89965727,3494.8,3494.5,7.87093422]
[1718160884026,0.59952456,3494.8,3494.6,0.836]
[1718160884565,0.59952456,3494.8,3494.7,0.11007546]
[1718160885062,0.89965727,3494.9,3494.7,0.11007546]
[1718160885225,1.8708924,3494.9,3494.8,0.836]
[1718160885430,4.8708924,3494.9,3494.7,0.94607546]
[1718160885654,4.8708924,3494.9,3494.8,0.11012606]
[1718160885856,5.17194669,3494.9,3494.8,0.11012606]
[1718160886026,1.20071156,3494.9,3494.8,0.11012606]
[1718160886226,4.20071156,3494.9,3494.8,0.11012606]
[1718160886448,0.89963336,3494.9,3494.8,0.11012606]
[1718160886826,4.20071156,3495.0,3494.8,0.11012606]
[1718160887572,1.20071156,3494.9,3494.7,0.836]
[1718160887861,0.8997303,3494.8,3494.7,0.836]
[1718160889381,0.8997303,3494.8,3494.7,7.7783]
[1718160889544,0.8997303,3494.9,3494.7,7.7783]
[1718160889867,0.8997303,3494.9,3494.8,0.836]
[1718160891977,2.44471156,3495.1,3494.8,5.24674512]
[1718160891978,1.8437205,3495.1,3494.8,5.24674512]
[1718160892152,1.244,3495.1,3495.0,0.836]
[1718160892474,1.244,3495.1,3495.0,1.54703088]
[1718160892642,1.244,3495.1,3495.0,2.47036697]
[1718160893155,1.244,3495.1,3495.0,5.33159697]
[1718160894743,1.244,3495.4,3495.0,5.33159697]
[1718160894945,1.244,3495.7,3495.3,0.836]
[1718160895254,1.244,3495.7,3495.5,0.836]
[1718160896877,1.244,3495.7,3495.6,0.10879088]
[1718160898546,1.244,3495.7,3495.6,1.19497497]
[1718160898872,0.5997205,3496.2,3495.6,1.19497497]
[1718160899071,1.20071156,3496.6,3495.6,1.19497497]
[1718160899072,0.5997205,3496.6,3496.1,2.86033]
[1718160899273,0.5997205,3496.7,3496.5,0.836]
[1718160899575,0.5997205,3497.0,3496.6,0.10818307]
[1718160899762,0.5997205,3497.0,3496.8,0.836]
[1718160900076,0.84274508,3496.9,3496.8,0.836]
[1718160900372,0.84274508,3496.9,3496.8,0.10811234]
[1718160900738,0.84274508,3496.9,3496.1,2.86033]
[1718160900940,0.5997205,3496.7,3496.6,0.836]
[1718160901577,0.5997205,3496.8,3496.6,0.94418307]
[1718160901774,0.56283959,3496.7,3496.6,0.94418307]
[1718160901943,0.56283959,3496.7,3496.6,0.836]
[1718160903159,1.44246558,3496.9,3496.6,0.836]
[1718160903475,0.84274508,3496.9,3496.6,0.836]
[1718160904361,0.84274508,3496.9,3496.8,0.836]
[1718160904565,1.39274508,3496.9,3496.8,0.836]
[1718160905240,3.0,3497.0,3496.7,0.836]
[1718160905555,3.8859205,3497.3,3496.9,0.836]
[1718160905777,0.8362,3497.2,3496.9,0.836]
[1718160906606,0.2862,3497.2,3496.5,0.05719534]
[1718160906797,0.2862,3497.4,3497.1,0.836]
[1718160907001,1.13339508,3497.4,3497.1,0.836]
[1718160908299,1.13339508,3497.4,3496.4,9.79117]
[1718160908457,3.0,3497.6,3497.3,0.836]
[1718160908458,0.2862,3497.6,3497.3,0.836]
[1718160908795,0.2862,3497.6,3497.5,0.836]
[1718160908961,0.73384958,3497.6,3497.5,0.836]
[1718160909291,0.2862,3497.6,3497.5,0.94317654]
[1718160909589,0.2862,3497.9,3497.5,0.94298149]
[1718160909898,1.08172242,3497.8,3497.5,0.94298149]
[1718160911292,1.08172242,3497.8,3497.7,0.836]
[1718160911593,1.63172242,3497.8,3497.7,0.836]
[1718160911754,1.60372242,3497.8,3497.7,0.836]
[1718160912160,1.60372242,3497.8,3497.0,0.05718662]
[1718160912161,1.60372242,3497.8,3497.5,0.836]
[1718160912470,0.8362,3497.8,3497.5,0.836]
[1718160912682,0.8362,3497.8,3497.6,0.10670781]
[1718160913772,7.4321,3497.7,3496.9,0.836]
[1718160913973,7.4321,3497.7,3497.1,0.836]
[1718160914275,3.0,3497.6,3497.3,0.836]
[1718160914482,0.55,3497.7,3497.3,0.836]
[1718160914893,0.55,3497.7,3497.4,0.10684892]
[1718160915225,0.34586485,3497.8,3497.3,0.836]
[1718160915358,0.34586485,3497.8,3497.5,0.10681357]
[1718160915693,0.34586485,3497.8,3497.3,0.836]
[1718160915905,0.34586485,3497.8,3497.6,0.10677822]
[1718160916064,0.34586485,3497.8,3497.3,0.836]
[1718160916466,0.34586485,3497.8,3497.4,0.10684892]
[1718160918428,0.34586485,3497.8,3497.5,0.836]
[1718160918602,0.05966485,3497.8,3497.7,0.836]
[1718160918804,0.73382418,3498.1,3497.7,0.836]
[1718160919003,0.73382418,3498.1,3497.7,0.94211992]
[1718160919610,0.73382418,3498.1,3497.9,0.836]
[1718160920099,0.2862,3498.2,3498.0,0.10601389]
[1718160921066,0.2862,3498.3,3498.0,0.10601389]
[1718160923507,0.55,3498.2,3498.0,0.10601389]
[1718160925399,0.55,3498.2,3498.1,0.836]
[1718160926022,0.55,3498.2,3498.1,0.94168614]
[1718160926882,0.8362,3498.5,3498.1,0.94168614]
[1718160927083,0.8362,3498.5,3498.1,0.836]
[1718160928377,0.8362,3498.5,3498.3,0.836]
[1718160928682,0.55,3498.5,3498.3,0.836]
[1718160929007,0.7337644,3498.7,3498.4,0.10565522]
[1718160929008,3.7337644,3498.7,3498.4,0.10565522]
[1718160929207,0.55,3498.6,3498.4,0.10565522]
[1718160929915,0.55,3498.6,3497.9,7.2207]
[1718160930073,1.57524732,3498.6,3498.5,0.10522462]
[1718160930272,1.57524732,3498.6,3498.0,0.836]
[1718160930596,0.55,3498.6,3498.0,0.836]
[1718160930805,0.55,3498.6,3498.1,0.1051765]
[1718160933098,0.55,3498.6,3498.2,0.836]
[1718160933295,0.55,3498.6,3498.3,0.10510041]
[1718160933908,0.55,3498.6,3498.2,0.836]
[1718160934809,0.55,3498.6,3498.4,0.836]
[1718160935008,3.7337644,3498.7,3498.4,0.836]
[1718160935209,3.4475644,3498.7,3498.4,8.1777]
[1718160935415,0.4475644,3498.7,3498.4,8.99547]
[1718160935589,0.4475644,3498.7,3498.6,0.836]
[1718160935930,0.4475644,3498.7,3498.6,0.94094564]
[1718160936483,1.244,3498.8,3498.6,0.94094564]
[1718160937331,3.0,3499.0,3498.7,8.11503246]
[1718160937543,1.244,3499.6,3498.9,0.836]
[1718160937544,1.81997513,3499.4,3498.9,0.836]
[1718160937899,1.81997513,3499.4,3498.8,1.1971381]
[1718160937900,1.37253676,3499.4,3499.0,0.836]
[1718160938070,1.65873676,3499.5,3499.0,0.940366]
[1718160938375,1.37253676,3499.4,3499.0,0.836]
[1718160938516,1.65873676,3499.5,3499.0,0.836]
[1718160938876,6.8326,3499.3,3498.8,0.836]
[1718160939151,3.0,3499.2,3498.8,0.836]
[1718160939647,3.0,3499.2,3498.9,0.10440132]
[1718160939832,0.8362,3499.1,3498.9,0.10440132]
[1718160940033,0.2862,3498.9,3497.9,7.1507]
[1718160940222,2.85821,3498.7,3497.9,7.1507]
[1718160940409,2.85821,3498.7,3498.1,0.836]
[1718160940608,3.55,3498.6,3498.5,0.836]
[1718160941148,3.55,3498.6,3498.5,0.93647791]
[1718160943070,3.55,3498.6,3498.5,0.10047791]
[1718160943766,3.55,3498.6,3498.3,0.836]
[1718160943956,3.55,3498.6,3498.5,0.10047791]
[1718160944171,3.55,3498.6,3498.3,0.836]
[1718160944463,3.55,3498.6,3498.5,0.10047791]
[1718160944671,3.55,3498.6,3498.4,0.10051324]
[1718160944869,3.55,3498.6,3498.5,0.10047791]
[1718160945249,3.55,3498.6,3498.1,0.836]
[1718160945449,3.55,3498.6,3498.5,0.10047791]
[1718160945659,3.55,3498.6,3498.1,0.836]
[1718160945855,3.55,3498.6,3498.5,0.10047791]
[1718160946155,3.55,3498.6,3498.1,0.836]
[1718160946768,3.55,3498.6,3498.2,0.10060562]
[1718160947482,0.2862,3498.8,3498.3,0.836]
[1718160947648,0.55,3498.7,3498.3,0.836]
[1718160947841,0.55,3498.7,3498.4,0.10051324]
[1718160948177,0.55,3498.7,3498.3,0.836]
[1718160948372,0.55,3498.7,3498.5,0.10047791]
[1718160948531,3.55,3498.7,3498.0,7.1507]
[1718160948736,3.55,3498.7,3498.1,0.93661925]
[1718160949047,5.52221586,3498.7,3498.1,0.10061925]
[1718160949257,2.85829,3498.6,3498.1,0.10061925]
[1718160949471,0.55,3498.5,3498.0,7.1507]
[1718160949654,0.55,3498.5,3498.2,0.10058391]
[1718160949860,0.55,3498.5,3498.0,7.9867]
[1718160950240,0.55,3498.5,3498.1,0.10061924]
[1718160950450,0.55,3498.5,3498.0,7.9867]
[1718160950654,0.55,3498.5,3498.0,7.1507]
[1718160950850,0.55,3498.5,3498.1,0.10104595]
[1718160951283,1.1497205,3498.5,3498.1,0.10104595]
[1718160951668,1.1497205,3498.5,3498.0,7.9867]
[1718160951862,0.55,3498.5,3498.0,7.9867]
[1718160952089,0.55,3498.5,3498.1,0.10099607]
[1718160952257,0.55,3498.5,3498.0,7.9867]
[1718160952457,1.1497205,3498.5,3498.0,7.9867]
[1718160953093,1.1497205,3498.5,3498.0,0.836]
[1718160953257,8.2786205,3498.5,3497.7,6.9385]
[1718160953592,8.2786205,3498.5,3498.1,0.10109467]
[1718160953765,8.2786205,3498.5,3498.0,0.836]
[1718160953963,8.2786205,3498.5,3498.1,0.10107306]
[1718160955497,0.5997205,3498.4,3498.1,0.10107306]
[1718160955698,1.1497205,3498.5,3498.1,0.10107306]
[1718160955860,0.5997205,3498.4,3498.1,0.10107306]
[1718160959228,0.5997205,3498.3,3498.1,0.10107306]
[1718160959528,0.5997205,3498.3,3498.0,0.836]
[1718160960141,0.5997205,3498.3,3498.1,0.10110007]
[1718160960630,1.1497205,3498.2,3498.1,0.10110007]
[1718160960934,1.1497205,3498.2,3497.8,0.836]
[1718160960935,1.4497303,3498.2,3497.8,0.836]
[1718160961087,1.4497303,3498.2,3498.1,0.10110007]
[1718160961289,1.4497303,3498.2,3497.8,0.836]
[1718160961544,0.5988417,3498.0,3497.8,0.836]
[1718160961722,0.5988417,3498.0,3497.9,0.10117076]
[1718160962821,0.5988417,3498.0,3497.8,0.836]
[1718160963069,0.5988417,3497.9,3497.8,0.836]
[1718160963270,0.5988417,3497.9,3497.7,6.9385]
[1718160963455,0.5988417,3497.9,3497.8,0.93733577]
[1718160964558,0.8997303,3498.0,3497.8,0.93733577]
[1718160964756,0.5992217,3497.9,3497.8,0.88891935]
[1718160964989,0.5992217,3498.0,3497.9,0.836]
[1718160965116,0.5992217,3498.1,3497.9,8.0878]
[1718160965459,0.5992217,3498.2,3498.0,0.93738934]
[1718160965667,0.5992217,3498.2,3498.1,0.836]
[1718160966078,0.5992217,3498.2,3498.1,0.93732936]
[1718160966448,0.8997303,3498.3,3498.1,0.93732936]
[1718160966649,0.59924558,3498.2,3498.1,0.93732936]
[1718160967258,0.8997303,3498.3,3498.1,0.93732936]
[1718160967554,0.59927099,3498.2,3498.1,0.93732936]
[1718160968384,0.8997303,3498.3,3498.1,0.93732936]
[1718160968742,0.59930678,3498.2,3498.1,0.93732936]
[1718160969189,0.8997303,3498.3,3498.1,0.93732936]
[1718160970372,0.8997303,3498.3,3498.2,7.0396]
[1718160970571,0.8997303,3498.5,3498.3,2.85853]
[1718160970786,2.1437303,3498.6,3498.5,2.85836]
[1718160970945,0.59934486,3498.9,3498.7,2.85819]
[1718160971143,0.59934486,3498.9,3498.8,1.70485599]
[1718160971361,0.59934486,3499.0,3498.8,1.80581422]
[1718160971552,0.59934486,3499.0,3498.9,0.836]
[1718160971838,1.244,3499.1,3498.9,0.836]
[1718160971839,1.244,3499.1,3499.0,2.85795]
[1718160972051,1.244,3499.1,3499.0,3.50356451]
[1718160972342,1.244,3499.1,3499.0,4.79647088]
[1718160973038,12.75934486,3499.5,3499.3,2.85764]
[1718160973039,0.59934486,3499.5,3499.3,2.85764]
[1718160973237,0.59934486,3499.5,3499.4,1.44789769]
[1718160973438,0.59934486,3499.7,3499.4,1.54738283]
[1718160973682,0.59934486,3499.7,3499.6,0.836]
[1718160974034,0.59934486,3499.7,3499.6,0.93541451]
[1718160975380,0.59934486,3499.8,3499.6,0.09941451]
[1718160975539,0.8997303,3499.9,3499.6,0.09941451]
[1718160975540,0.59934486,3499.7,3499.6,0.09941451]
[1718160975739,0.59934486,3499.7,3499.5,0.836]
[1718160975935,4.20071156,3500.0,3499.6,0.09930115]
[1718160975936,0.8997303,3499.8,3499.6,0.09930115]
[1718160976140,0.59800599,3499.7,3499.6,0.09930115]
[1718160978388,0.59800599,3499.8,3499.6,0.09930115]
[1718160980295,1.16785078,3499.8,3499.6,0.09930115]
[1718160980473,4.00538599,3499.7,3499.2,0.836]
[1718160980965,0.59800599,3499.6,3499.4,0.836]
[1718160981484,3.59800599,3499.8,3499.5,0.09938504]
[1718160981665,3.0,3499.7,3499.4,0.836]
[1718160981858,0.59800599,3499.8,3499.6,0.09934973]
[1718160982058,3.8997303,3500.0,3499.4,0.836]
[1718160982059,0.59800599,3499.9,3499.4,0.836]
[1718160982388,0.59800599,3499.8,3499.7,0.09931442]
[1718160982553,1.45355978,3499.8,3499.0,7.0638]
[1718160982745,0.59800599,3499.8,3499.3,0.836]
[1718160982959,0.59800599,3499.7,3499.3,0.836]
[1718160983159,0.59800599,3499.7,3499.4,0.09942035]
[1718160983359,0.59800599,3499.6,3499.4,0.09942035]
[1718160983560,0.59800599,3499.6,3499.3,0.836]
[1718160983749,3.59800599,3499.7,3499.3,0.836]
[1718160983949,0.55,3499.6,3499.3,0.836]
[1718160984459,1.14800599,3499.6,3499.3,0.836]
[1718160986955,1.14800599,3499.6,3499.1,0.836]
[1718160987377,1.14800599,3499.6,3499.2,0.09955579]
[1718160988305,0.59800599,3499.5,3499.2,0.09955579]
[1718160988597,0.59800599,3499.5,3499.1,0.836]
[1718160989251,2.2723635,3499.5,3499.1,0.836]
[1718160989873,1.67435751,3499.5,3499.1,0.836]
[1718160992367,1.67435751,3499.5,3498.6,7.2001]
[1718160992568,2.85781,3499.2,3498.6,8.0361]
[1718160992871,4.54911735,3499.2,3498.8,0.836]
[1718160993089,5.14712334,3499.2,3498.8,0.836]
[1718160993389,5.14712334,3499.2,3498.9,0.09642542]
[1718160996782,5.14712334,3499.2,3498.8,0.836]
[1718160996984,3.45581599,3499.2,3498.8,0.836]
[1718160997494,3.45581599,3499.2,3498.6,7.2001]
[1718160997495,0.59800599,3499.2,3498.9,0.05715969]
[1718160997694,8.43046721,3499.6,3499.1,0.836]
[1718160997695,0.59800599,3499.3,3499.1,0.836]
[1718160997896,0.59800599,3499.4,3499.1,0.836]
[1718160998200,3.59800599,3499.5,3499.2,0.09629775]
[1718160998572,3.59800599,3499.5,3499.1,0.836]
[1718160998773,0.59800599,3499.4,3499.1,0.836]
[1718161000176,0.59800599,3499.4,3498.9,0.836]
[1718161000391,0.59800599,3499.3,3498.9,0.836]
[1718161000605,4.00573599,3499.3,3498.6,7.2001]
[1718161000795,2.85788,3499.1,3498.8,0.836]
[1718161002379,3.45588599,3499.1,3498.8,0.836]
[1718161003409,2.85832,3498.6,3497.6,6.9207]
[1718161003772,2.85832,3498.6,3497.8,0.836]
[1718161004078,1.14800599,3498.5,3497.8,1.46750296]
[1718161004400,1.14800599,3498.5,3497.9,0.836]
[1718161004621,2.18196727,3498.5,3497.9,0.836]
[1718161006268,1.14800599,3498.5,3497.9,0.836]
[1718161007522,0.55,3498.5,3497.9,0.836]
[1718161007830,1.14800599,3498.5,3497.9,0.836]
[1718161008145,1.14800599,3498.5,3498.1,0.836]
[1718161010485,1.14800599,3498.5,3498.2,7.1559]
[1718161010691,1.14800599,3498.5,3498.2,7.2495219]
[1718161010892,0.59800599,3498.5,3498.3,0.68622154]
[1718161011198,0.59800599,3498.7,3498.4,0.836]
[1718161011397,0.59800599,3498.7,3498.6,0.836]
[1718161011596,5.85801,3499.0,3498.6,0.836]
[1718161011800,6.45601599,3499.0,3498.6,0.92948056]
[1718161012003,5.85801,3499.0,3498.6,0.92948056]
[1718161012544,6.45601599,3499.0,3498.6,0.92948056]
[1718161013399,6.45601599,3499.0,3498.6,0.09348056]
[1718161013608,7.42939887,3499.0,3498.6,0.09348056]
[1718161013798,0.59800599,3498.9,3498.2,7.1559]
[1718161013985,0.59800599,3498.9,3498.7,0.09393501]
[1718161014213,2.85818,3498.8,3497.9,6.9847]
[1718161014397,9.85628,3498.8,3498.2,0.836]
[1718161014725,0.59800599,3498.7,3498.3,0.09407634]
[1718161014892,11.47261992,3498.8,3498.2,0.836]
[1718161014893,0.59800599,3498.6,3498.2,0.836]
[1718161015096,12.37235022,3498.8,3498.2,0.836]
[1718161015097,0.59800599,3498.7,3498.2,0.836]
[1718161015637,2.85832,3498.6,3498.2,0.836]
[1718161015794,3.45632599,3498.6,3498.2,0.836]
[1718161016794,4.87344677,3498.6,3497.9,6.9847]
[1718161017031,4.87344677,3498.6,3498.1,0.836]
[1718161017032,0.55,3498.5,3498.1,0.836]
[1718161018761,2.85846,3498.4,3497.9,0.836]
[1718161018913,3.45646599,3498.4,3497.9,0.836]
[1718161019119,3.45646599,3498.4,3498.0,0.09101176]
[1718161019641,3.45646599,3498.4,3497.9,0.836]
[1718161021980,4.20886885,3498.4,3497.4,7.3684]
[1718161022248,2.85863,3498.2,3497.8,0.836]
[1718161027935,3.45663599,3498.2,3497.8,0.836]
[1718161028352,3.45663599,3498.2,3497.5,0.63640638]
[1718161028557,3.45663599,3498.2,3497.7,0.836]
[1718161030625,2.85886,3497.9,3497.4,7.3684]
[1718161030829,2.85886,3497.9,3497.6,0.836]
[1718161031035,2.85886,3497.9,3497.7,0.09138897]
[1718161031663,2.85886,3497.9,3496.9,2.85959]
[1718161031664,2.8591,3497.6,3496.8,6.8353]
[1718161031862,2.8591,3497.6,3497.3,0.836]
[1718161033748,9.8631,3497.6,3496.9,0.64539817]
[1718161034126,9.8631,3497.6,3497.2,0.836]
[1718161036361,0.59800599,3497.9,3497.5,1.48058063]
[1718161036567,1.49521501,3498.4,3496.5,2.85993]
[1718161036568,1.04554532,3498.6,3498.3,2.85846]
[1718161036875,0.59800599,3498.5,3498.4,0.62741742]
[1718161037033,3.45555599,3499.5,3498.5,0.836]
[1718161037234,3.45555599,3499.5,3498.7,0.836]
[1718161037557,0.59800599,3499.4,3498.8,0.09167993]
[1718161037759,0.59800599,3499.4,3498.7,0.836]
[1718161038160,0.59800599,3499.4,3498.8,0.09167993]
[1718161038451,0.59800599,3499.4,3498.7,0.836]
[1718161038651,0.59800599,3499.4,3498.8,0.09167993]
[1718161038972,0.59800599,3499.4,3498.6,0.61843128]
[1718161039151,0.59800599,3499.4,3498.6,1.00933918]
[1718161039355,0.59800599,3499.4,3498.7,0.09171526]
[1718161040061,0.59800599,3499.4,3498.7,0.14887275]
[1718161040062,0.55,3499.3,3498.7,0.14887275]
[1718161040437,0.55,3499.4,3498.7,7.07435749]
[1718161040650,0.55,3499.5,3498.8,0.09086921]
[1718161040860,0.55,3499.5,3498.9,1.10327759]
[1718161041162,0.55,3499.5,3499.0,0.09079856]
[1718161047869,0.8362,3499.6,3499.0,0.09079856]
[1718161061081,0.8362,3499.6,3499.5,0.833]
[1718161061599,0.8362,3499.6,3499.5,0.92264771]
[1718161069329,0.55,3499.6,3499.5,0.92264771]
[1718161069533,1.244,3499.9,3499.6,2.85746]
[1718161069703,1.244,3499.9,3499.7,0.833]
[1718161070634,3.0,3500.0,3499.7,0.833]
[1718161070845,0.2862,3500.1,3499.9,0.833]
[1718161071605,0.55,3500.0,3499.9,0.833]
[1718161081345,1.14800599,3500.0,3499.9,0.833]